bitfinex-derivatives/quotes_BNBF0:USTF0_20250425
["timestamp","ask_amount","ask_price","bid_price","bid_amount"]
[1745604694029,1.25737978,604.15,602.04,0.30475393]
[1745604694227,1.25737978,604.15,602.03,0.30475393]
[1745604694435,1.25737978,604.15,602.02,1.453]
[1745604694636,1.25737978,604.15,602.03,0.30474399]
[1745604695540,1.25737978,604.09,602.05,1.04405207]
[1745604695734,1.25737978,604.09,602.06,0.30474399]
[1745604696132,0.28870204,604.08,602.05,1.04405207]
[1745604696334,0.28870204,604.08,602.06,0.30475393]
[1745604698235,1.25737978,603.77,602.06,0.30475393]
[1745604699239,0.28874037,603.76,602.05,1.04405207]
[1745604699434,0.28874037,603.76,602.06,0.30475887]
[1745604700139,0.28874037,603.76,602.06,1.74675887]
[1745604700341,0.28874037,603.76,602.07,0.30475887]
[1745604700841,0.28874037,603.76,602.06,1.442]
[1745604701041,0.28874037,603.76,602.07,0.30475983]
[1745604701942,1.25737978,603.72,602.07,1.3488119]
[1745604702242,1.25737978,603.72,602.08,0.30475983]
[1745604702438,1.25737978,603.72,602.07,1.04405207]
[1745604702639,1.25737978,603.72,602.08,0.30476186]
[1745604703243,0.28874396,603.71,602.08,0.30476186]
[1745604704143,0.28874396,603.71,602.07,1.04405207]
[1745604704343,0.28874396,603.71,602.08,0.30476012]
[1745604704642,0.28874396,603.71,602.09,0.30476012]
[1745604704842,1.25737978,603.77,602.06,1.442]
[1745604704843,1.25737978,603.77,602.1,0.30476012]
[1745604705038,1.25737978,603.77,602.07,0.30476012]
[1745604705240,0.28873917,603.76,602.08,0.30476012]
[1745604706744,0.28873917,603.76,602.09,1.185]
[1745604706943,0.28873917,603.76,602.1,0.30476012]
[1745604707442,0.28873917,603.76,602.09,1.185]
[1745604707942,1.25737978,604.01,602.1,0.3047616]
[1745604708243,0.28870683,603.75,602.1,0.3047616]
[1745604708443,1.25737978,604.01,602.1,0.3047616]
[1745604708943,1.25737978,604.01,602.09,1.185]
[1745604709243,0.28870683,604.0,602.1,0.30476165]
[1745604710546,0.28870683,604.0,602.09,1.185]
[1745604710845,1.25737978,604.01,602.09,1.185]
[1745604711242,1.25737978,604.1,602.1,1.337]
[1745604712146,0.28869486,604.09,602.1,1.337]
[1745604713850,1.25737978,604.1,602.1,1.337]
[1745604714150,0.28869486,604.08,602.1,1.337]
[1745604714347,1.25737978,604.07,602.1,1.337]
[1745604715449,1.25737978,604.07,602.11,0.959]
[1745604715650,1.25737978,604.07,602.12,0.30476713]
[1745604716750,0.28869486,604.08,602.12,0.30476713]
[1745604716751,1.25737978,603.9,602.12,0.30476713]
[1745604717853,1.25737978,603.9,602.11,0.959]
[1745604719152,1.25737978,603.92,602.11,0.959]
[1745604720152,0.28874636,603.91,602.11,0.959]
[1745604720447,0.28874636,603.91,602.12,1.008]
[1745604725955,1.25737978,604.13,602.12,1.008]
[1745604726955,1.25737978,604.11,602.12,1.008]
[1745604729560,1.25737978,604.06,602.12,1.008]
[1745604730062,0.28873797,604.05,602.12,1.008]
[1745604731857,1.25737978,604.06,602.12,1.008]
[1745604732059,1.25737978,603.98,602.12,1.008]
[1745604733064,0.28875714,603.97,602.12,1.008]
[1745604733257,0.28875714,603.97,602.11,0.959]
[1745604734867,1.25737978,603.98,602.11,0.959]
[1745604735167,2.12377208,604.72,602.11,0.959]
[1745604735168,0.28875834,603.96,602.11,0.959]
[1745604737867,1.25737978,604.03,602.11,0.959]
[1745604738469,1.25737978,604.1,602.11,0.959]
[1745604739168,0.2887236,604.09,602.11,0.959]
[1745604740867,1.25737978,604.3,602.11,0.959]
[1745604741468,0.28870085,604.29,602.11,0.959]
[1745604743170,1.25737978,604.21,602.11,0.959]
[1745604744369,0.28869246,604.2,602.11,0.959]
[1745604745571,0.28869246,604.2,602.1,1.337]
[1745604745772,1.25737978,604.14,602.1,1.337]
[1745604748175,0.28871881,604.13,602.1,1.337]
[1745604749376,1.25737978,603.85,602.1,1.337]
[1745604751273,0.28875355,603.84,602.1,1.337]
[1745604752879,1.25737978,603.85,602.1,1.337]
[1745604753179,0.28875355,603.83,602.1,1.337]
[1745604754683,1.25737978,603.82,602.1,1.337]
[1745604756184,0.28875714,603.81,602.1,1.337]
[1745604757685,1.25737978,603.77,602.1,1.337]
[1745604761390,0.28875714,603.81,602.11,0.30482241]
[1745604762092,1.25737978,603.83,602.11,0.30482241]
[1745604762492,0.28875594,603.8,602.11,0.30482241]
[1745604764094,1.25737978,603.65,602.11,0.30482241]
[1745604765288,0.28877751,603.64,602.11,0.30482241]
[1745604765494,0.28877751,603.64,602.12,0.30482053]
[1745604765692,0.28877751,603.64,602.1,1.337]
[1745604766493,1.25737978,603.57,602.1,1.337]
[1745604769192,0.28878949,603.56,602.1,1.337]
[1745604769399,0.28878949,603.56,602.0,0.28878949]
[1745604770904,1.25737978,603.74,601.81,1.04405207]
[1745604771102,1.25737978,603.74,601.82,0.30485188]
[1745604771804,1.25737978,603.74,601.81,1.04405207]
[1745604772004,1.25737978,603.74,601.82,0.30484989]
[1745604772197,0.28881825,603.73,601.82,0.59366814]
[1745604772401,0.28881825,603.73,601.83,0.30484989]
[1745604773404,0.28881825,603.73,601.82,0.28881825]
[1745604773604,0.28881825,603.73,601.83,0.30485116]
[1745604773904,1.25737978,603.85,601.83,0.30485116]
[1745604774107,1.25737978,603.85,601.84,0.30485116]
[1745604774306,1.25737978,603.85,601.8,0.30485116]
[1745604774500,1.25737978,603.85,601.81,0.30485116]
[1745604774700,2.12377208,604.0,601.79,1.237]
[1745604774701,1.25737978,603.93,601.83,1.04405207]
[1745604774900,1.25737978,603.93,601.84,0.30485116]
[1745604775403,0.28877391,603.92,601.84,0.30485116]
[1745604776506,0.28877391,603.92,601.83,1.04405207]
[1745604776701,0.28877391,603.92,601.84,0.30483105]
[1745604776902,1.25737978,603.93,601.84,0.30483105]
[1745604777106,2.12377208,604.67,601.84,0.30483105]
[1745604777107,1.25737978,603.91,601.89,1.04405207]
[1745604777505,1.25737978,603.91,601.9,0.30483105]
[1745604778308,0.28876912,603.9,601.9,0.30483105]
[1745604779611,0.28876912,603.9,601.84,0.30483105]
[1745604779904,1.25737978,604.08,601.85,0.30483276]
[1745604780208,1.25737978,604.08,601.86,0.30483276]
[1745604780410,0.28875834,604.07,601.84,0.28875834]
[1745604780609,0.28875834,604.07,601.85,0.30483276]
[1745604782309,1.25737978,604.04,601.88,1.04405207]
[1745604782706,1.25737978,604.04,601.89,0.30482573]
[1745604784111,1.25737978,604.04,601.88,1.04405207]
[1745604784313,0.28875475,604.03,601.89,0.30482514]
[1745604784613,0.28875475,604.03,601.89,1.34887721]
[1745604784805,0.28875475,604.03,601.9,0.30482514]
[1745604785911,1.25737978,604.04,601.9,0.30482514]
[1745604787317,0.28875355,604.03,601.9,0.30482514]
[1745604787617,0.28875355,604.03,601.88,0.28875355]
[1745604787814,0.28875355,604.03,601.89,0.3048265]
[1745604788516,0.28875355,604.03,601.9,1.045]
[1745604788716,0.28875355,604.03,601.91,0.3048265]
[1745604788913,1.25737978,604.14,601.91,0.3048265]
[1745604790219,1.25737978,603.85,601.91,0.3048265]
[1745604792115,0.28877511,603.84,601.91,0.3048265]
[1745604792319,0.28877511,603.84,601.92,0.3048254]
[1745604792518,0.28877511,603.84,601.91,0.3048254]
[1745604792715,0.28877511,603.84,601.92,0.3048254]
[1745604793019,0.28877511,603.84,601.93,0.3048254]
[1745604793219,0.28877511,603.84,601.91,0.3048254]
[1745604793518,0.28877511,603.84,601.92,0.3048254]
[1745604793719,0.28877511,603.84,601.91,0.3048254]
[1745604793919,0.28877511,603.84,601.92,1.236]
[1745604794118,0.28877511,603.84,601.93,0.30482514]
[1745604794919,1.25737978,603.85,601.93,0.30482514]
[1745604795319,2.12377208,604.59,601.93,0.30482514]
[1745604795320,0.28877272,603.84,601.93,0.30482514]
[1745604795716,1.25737978,603.95,601.93,0.30482514]
[1745604796319,0.28876074,603.94,601.93,0.30482514]
[1745604797918,2.12377208,604.68,601.93,0.30482514]
[1745604797919,1.25737978,603.86,601.93,0.30482514]
[1745604798815,1.25737978,603.86,601.92,1.236]
[1745604799019,1.25737978,603.86,601.93,1.4028298]
[1745604799220,0.28877152,603.85,601.94,0.3048298]
[1745604800021,1.25737978,603.78,601.94,0.3048298]
[1745604801121,1.25737978,603.78,601.95,0.953]
[1745604801316,0.2887799,603.77,601.95,0.953]
[1745604801521,0.2887799,603.77,601.96,0.3048298]
[1745604802021,1.25737978,603.76,601.95,0.953]
[1745604802221,1.25737978,603.76,601.96,0.30483553]
[1745604803622,1.25737978,603.76,601.95,0.953]
[1745604803817,1.25737978,603.76,601.96,0.30484532]
[1745604805027,1.25737978,603.67,601.96,0.30484532]
[1745604805225,1.25737978,603.67,601.95,0.953]
[1745604805421,1.25737978,603.67,601.96,0.30483574]
[1745604807225,0.28880747,603.66,601.96,0.30483574]
[1745604807727,1.25737978,603.62,601.96,0.30483574]
[1745604808525,1.25737978,603.62,601.97,0.30482355]
[1745604808824,1.25737978,603.62,601.98,0.30482355]
[1745604809024,1.25737978,603.62,601.96,0.30482355]
[1745604809326,1.25737978,603.62,601.97,0.30482355]
[1745604809528,1.25737978,603.62,601.96,0.30482355]
[1745604809923,1.25737978,603.75,602.03,1.04405207]
[1745604810129,1.25737978,603.75,602.04,0.30482023]
[1745604811229,1.25737978,603.75,602.04,1.28282023]
[1745604811230,0.28877391,603.74,602.04,1.28282023]
[1745604811524,0.28877391,603.74,602.05,0.30482023]
[1745604812025,0.28877391,603.74,602.04,0.978]
[1745604815935,1.25737978,604.08,602.04,0.978]
[1745604816135,0.28874037,603.73,602.04,0.978]
[1745604816537,1.25737978,604.08,602.04,0.978]
[1745604817336,0.28874037,604.07,602.04,0.978]
[1745604818935,1.25737978,604.08,602.04,0.978]
[1745604819234,0.28874037,604.06,602.04,0.978]
[1745604821942,1.25737978,604.08,602.04,0.978]
[1745604823243,0.28874037,604.07,602.04,0.978]
[1745604825945,1.25737978,603.96,602.04,0.978]
[1745604828349,1.25737978,604.0,602.04,0.978]
[1745604828947,1.25737978,604.0,602.04,2.089]
[1745604829248,0.28874995,603.99,602.04,2.089]
[1745604830949,1.25737978,604.0,602.04,2.089]
[1745604832144,0.28874995,603.99,602.04,2.089]
[1745604833950,1.25737978,604.0,602.04,2.089]
[1745604834950,2.12377208,604.41,602.04,2.089]
[1745604834951,1.25737978,603.99,602.04,2.089]
[1745604835247,1.54612973,603.99,602.04,2.089]
[1745604836955,1.25737978,603.99,602.04,2.089]
[1745604837355,0.28875115,603.98,602.04,2.089]
[1745604837749,1.25737978,604.19,602.04,2.089]
[1745604838351,0.28871761,604.18,602.04,2.089]
[1745604840055,1.25737978,604.19,602.04,2.089]
[1745604840354,2.12377208,605.13,602.04,2.089]
[1745604840355,0.28871761,604.17,602.04,2.089]
[1745604842662,0.28871761,604.17,602.04,3.348]
[1745604842959,1.25737978,604.34,602.04,3.348]
[1745604843661,1.25737978,604.4,602.04,3.348]
[1745604844162,0.28868049,604.39,602.04,3.348]
[1745604845966,1.25737978,604.4,602.04,3.348]
[1745604846369,0.28868049,604.38,602.04,3.348]
[1745604847670,0.28868049,604.38,602.05,0.30476312]
[1745604848970,1.25737978,604.41,602.05,0.30476312]
[1745604849167,1.25737978,604.41,602.04,1.259]
[1745604849168,1.25737978,603.88,602.06,0.30474358]
[1745604849367,1.25737978,603.88,602.07,0.30474358]
[1745604849566,1.25737978,603.88,602.08,0.30474358]
[1745604849766,1.25737978,603.88,602.05,0.30474358]
[1745604849967,1.25737978,603.88,602.06,0.30474358]
[1745604850266,1.25737978,603.88,602.07,0.30474358]
[1745604850467,1.25737978,603.88,602.08,0.30474358]
[1745604850667,1.25737978,603.88,602.06,1.239]
[1745604850867,1.25737978,603.88,602.09,0.933]
[1745604851070,1.25737978,603.88,602.1,0.30474175]
[1745604852172,1.25737978,603.88,602.09,0.933]
[1745604852374,1.25737978,603.88,602.1,0.30471765]
[1745604853174,1.25737978,604.02,602.1,0.30471765]
[1745604855373,0.28868408,604.01,602.1,0.30471765]
[1745604856474,0.28868408,604.01,602.09,0.933]
[1745604856674,0.28868408,604.01,602.1,0.30470336]
[1745604857976,1.25737978,604.18,602.1,0.30470336]
[1745604858372,1.25737978,604.18,602.11,0.30468665]
[1745604858572,1.25737978,604.18,602.12,0.30468665]
[1745604858869,1.25737978,604.18,602.13,0.30468665]
[1745604859073,1.25737978,604.18,602.1,0.30468665]
[1745604859273,0.28864816,604.17,602.11,0.30468665]
[1745604859477,0.28864816,604.17,602.1,0.30468665]
[1745604859675,0.28864816,604.17,602.11,0.30468665]
[1745604859875,0.28864816,604.17,602.1,0.30468665]
[1745604860071,0.28864816,604.17,602.09,0.933]
[1745604860072,0.28864816,604.17,602.11,0.30468665]
[1745604860275,0.28864816,604.17,602.1,0.30468665]
[1745604860474,0.28864816,604.17,602.11,0.30468665]
[1745604860672,0.28864816,604.17,602.09,0.933]
[1745604860673,0.28864816,604.17,602.1,0.30468665]
[1745604860869,1.25737978,604.37,602.11,0.30468665]
[1745604861070,1.25737978,604.37,602.1,0.30468665]
[1745604861273,1.25737978,604.37,602.09,0.933]
[1745604861274,0.28862542,604.16,602.12,1.338]
[1745604861476,1.25737978,604.37,602.13,0.30468665]
[1745604862377,0.28862183,604.36,602.13,0.30468665]
[1745604862778,0.28862183,604.36,602.12,1.338]
[1745604862975,0.28862183,604.36,602.13,0.30468997]
[1745604864278,0.28862183,604.36,602.12,1.338]
[1745604864478,0.28862183,604.36,602.13,0.30468122]
[1745604865779,0.28862183,604.36,602.12,1.338]
[1745604866078,0.28862183,604.36,602.13,0.30467787]
[1745604866981,1.25737978,604.51,602.13,0.30467787]
[1745604867279,1.25737978,604.51,602.12,1.338]
[1745604867479,1.25737978,604.51,602.13,0.30467856]
[1745604868075,1.25737978,604.6,602.13,0.30467856]
[1745604868279,0.28860388,604.5,602.13,0.30467856]
[1745604868480,1.25737978,604.6,602.13,0.30467856]
[1745604870181,1.25737978,604.45,602.13,0.30467856]
[1745604870480,1.25737978,604.45,602.14,0.30467759]
[1745604870680,1.25737978,604.45,602.13,0.30467759]
[1745604870975,1.25737978,604.45,602.14,0.30467759]
[1745604871279,1.25737978,604.45,602.15,0.30467759]
[1745604871481,1.25737978,604.45,602.13,0.30467759]
[1745604871780,1.25737978,604.45,602.14,0.30467759]
[1745604871982,1.25737978,604.45,602.13,0.30467759]
[1745604872182,1.25737978,604.45,602.14,0.30467759]
[1745604872374,1.25737978,604.45,602.13,0.30467759]
[1745604872577,1.25737978,604.32,602.13,0.30467759]
[1745604873377,1.25737978,604.32,602.12,1.62662542]
[1745604873578,1.25737978,604.32,602.13,0.30467329]
[1745604874382,0.28862542,604.31,602.13,0.30467329]
[1745604875082,0.28862542,604.31,602.14,1.273]
[1745604875283,0.28862542,604.31,602.15,0.30467329]
[1745604875882,1.25737978,604.26,602.15,0.30467329]
[1745604877885,1.25737978,604.26,602.14,1.273]
[1745604878084,1.25737978,604.26,602.15,0.30467819]
[1745604878681,1.25737978,604.18,602.15,0.30467819]
[1745604879384,1.25737978,604.18,602.14,1.273]
[1745604879581,1.25737978,604.18,602.15,0.30468477]
[1745604880182,0.28863979,604.17,602.15,0.30468477]
[1745604881189,1.25737978,604.15,602.15,1.69968477]
[1745604881388,1.25737978,604.15,602.16,0.30468477]
[1745604883186,0.28864218,604.14,602.16,0.30468477]
[1745604883691,1.25737978,604.09,602.16,0.30468477]
[1745604884191,1.25737978,604.09,602.16,1.40768477]
[1745604884486,1.25737978,604.09,602.17,0.30468477]
[1745604885591,1.25737978,604.09,602.16,1.103]
[1745604885891,1.25737978,604.09,602.17,0.30468267]
[1745604886087,1.25737978,604.16,602.17,0.30468267]
[1745604886391,0.28864816,604.08,602.17,0.30468267]
[1745604886686,1.25737978,604.16,602.17,0.30468267]
[1745604887093,1.25737978,604.16,602.16,1.39164816]
[1745604887392,1.25737978,604.16,602.17,0.30468865]
[1745604888195,0.28863979,604.15,602.17,0.30468865]
[1745604890990,1.25737978,604.19,602.17,0.30468865]
[1745604891296,0.28863619,604.14,602.17,0.30468865]
[1745604893196,0.28863619,604.14,602.16,1.39163619]
[1745604893400,0.28863619,604.14,602.17,0.30468287]
[1745604893997,1.25737978,604.18,602.17,0.30468287]
[1745604894697,1.25737978,604.18,602.16,1.103]
[1745604894897,1.25737978,604.18,602.17,0.30468179]
[1745604895196,0.28863739,604.17,602.17,0.30468179]
[1745604896298,1.25737978,604.1,602.18,1.04405207]
[1745604896497,1.25737978,604.1,602.19,0.30468152]
[1745604897299,0.28864457,604.09,602.19,0.30468152]
[1745604897897,0.28864457,604.09,602.2,0.30468721]
[1745604898097,0.28864457,604.09,602.21,0.30468721]
[1745604898299,0.28864457,604.09,602.19,0.30468721]
[1745604898500,0.28864457,604.09,602.2,0.30468721]
[1745604898700,0.28864457,604.09,602.19,0.30468721]
[1745604898894,0.28864457,604.09,602.2,0.30468721]
[1745604899098,0.28864457,604.09,602.21,0.30468721]
[1745604899299,0.28864457,604.09,602.18,1.04405207]
[1745604899300,0.28864457,604.09,602.19,0.30468721]
[1745604899502,0.28864457,604.09,602.22,1.208]
[1745604899803,1.25737978,604.03,602.23,0.30468721]
[1745604900198,1.25737978,604.03,602.24,0.30468742]
[1745604900396,0.28864816,604.02,602.24,1.226]
[1745604900601,0.28864816,604.02,602.25,0.30468742]
[1745604901301,1.25737978,604.03,602.25,0.30468742]
[1745604901598,0.28864577,604.01,602.25,0.30468742]
[1745604902202,0.28864577,604.01,602.26,1.04405207]
[1745604902502,0.28864577,604.01,602.27,0.30468742]
[1745604902902,1.25737978,604.1,602.27,0.30468742]
[1745604903299,0.288635,604.09,602.27,0.30468742]
[1745604904103,1.25737978,604.06,602.33,1.04405207]
[1745604906205,0.28862662,604.05,602.33,1.04405207]
[1745604907004,0.28862662,604.05,602.29,1.04405207]
[1745604907200,0.28862662,604.05,602.3,0.30467641]
[1745604907707,0.28862662,604.05,602.3,1.19867641]
[1745604907999,0.28862662,604.05,602.3,0.894]
[1745604908906,1.25737978,604.2,602.3,0.894]
[1745604909207,0.28866133,604.04,602.3,0.894]
[1745604909702,1.25737978,604.03,602.3,0.894]
[1745604910306,0.28867211,604.02,602.3,0.894]
[1745604912008,1.25737978,604.03,602.3,0.894]
[1745604912208,1.25737978,604.33,602.3,0.894]
[1745604912408,0.28864816,604.01,602.3,0.894]
[1745604912707,1.25737978,604.33,602.3,0.894]
[1745604913408,0.28861226,604.32,602.3,0.894]
[1745604914914,1.25737978,604.12,602.3,0.894]
[1745604918012,1.25737978,604.38,602.3,0.894]
[1745604918415,1.25737978,604.38,602.3,2.053]
[1745604918416,0.28860627,604.37,602.3,2.053]
[1745604921118,1.25737978,604.38,602.3,2.053]
[1745604922312,0.28860627,604.37,602.3,2.053]
[1745604922914,0.28860627,604.37,602.3,3.181]
[1745604924111,1.25737978,604.39,602.3,3.181]
[1745604924315,0.28860508,604.36,602.3,3.181]
[1745604924818,0.28860508,604.36,602.31,0.30468216]
[1745604925217,0.28860508,604.36,602.3,2.287]
[1745604925517,0.28860508,604.36,602.31,0.30468234]
[1745604925718,0.28860508,604.36,602.3,2.287]
[1745604927017,1.25737978,604.39,602.3,2.287]
[1745604927416,0.28860508,604.38,602.3,2.287]
[1745604927821,1.25737978,604.27,602.3,2.287]
[1745604930222,0.28861944,604.26,602.3,2.287]
[1745604932925,1.25737978,604.31,602.3,2.287]
[1745604933324,0.28861465,604.3,602.3,2.287]
[1745604935930,1.25737978,604.35,602.3,2.287]
[1745604937230,0.28860986,604.34,602.3,2.287]
[1745604938230,1.25737978,604.3,602.3,2.287]
[1745604939330,0.28861585,604.29,602.3,2.287]
[1745604941631,1.25737978,604.2,602.3,2.287]
[1745604943330,0.28862782,604.19,602.3,2.287]
[1745604944736,1.25737978,604.08,602.3,2.287]
[1745604947238,0.28862782,604.19,602.3,1.159]
[1745604947239,1.25737978,603.97,602.3,1.159]
[1745604948537,1.25737978,603.97,602.09,1.04405207]
[1745604948736,1.25737978,603.97,602.1,0.30472669]
[1745604949239,0.28871402,603.96,602.1,0.30472669]
[1745604949440,0.28871402,603.96,602.11,0.28871402]
[1745604951042,1.25737978,604.12,602.03,1.04405207]
[1745604951239,1.25737978,604.12,602.04,0.30474507]
[1745604952240,0.28870324,604.11,602.03,1.04405207]
[1745604952441,0.28870324,604.11,602.05,0.28870324]
[1745604952841,1.25737978,604.05,602.05,0.28870324]
[1745604954041,1.25737978,604.05,601.9,1.04405207]
[1745604954242,1.25737978,604.05,601.91,0.30475405]
[1745604955044,2.12377208,604.79,601.91,0.30475405]
[1745604955045,1.25737978,604.49,601.91,0.30475405]
[1745604955243,0.28872719,604.04,601.92,0.59348124]
[1745604955442,0.28872719,604.04,601.93,0.30475405]
[1745604955642,1.25737978,604.49,601.93,0.30475405]
[1745604956844,0.28867211,604.48,601.93,0.30475405]
[1745604957343,0.28867211,604.48,601.94,0.30475405]
[1745604957746,0.28867211,604.48,601.95,0.30475405]
[1745604957946,0.28867211,604.48,601.92,0.28868169]
[1745604958241,0.28867211,604.48,601.93,0.30476469]
[1745604959449,0.28867211,604.48,601.92,0.28868169]
[1745604959648,0.28867211,604.48,601.93,0.30475759]
[1745604960144,1.25737978,604.5,601.93,0.30475759]
[1745604960447,0.28868288,604.47,601.94,0.30475759]
[1745604960644,0.28868288,604.47,601.81,0.30475759]
[1745604961347,0.28868288,604.47,601.82,0.28869725]
[1745604961549,0.28868288,604.47,601.83,0.30475759]
[1745604962050,0.28868288,604.47,601.82,0.28869725]
[1745604962250,0.28868288,604.47,601.83,0.30476941]
[1745604963152,1.25737978,604.5,601.84,0.998]
[1745604963450,1.25737978,604.5,601.85,0.30476941]
[1745604964350,0.28870444,604.49,601.85,0.30476941]
[1745604965145,2.12377208,604.05,601.86,1.436]
[1745604965349,1.25737978,603.93,601.96,1.04405207]
[1745604965644,1.25737978,603.93,601.97,0.30476941]
[1745604966652,1.25737978,603.93,601.96,1.04405207]
[1745604966951,1.25737978,603.93,601.97,0.30479456]
[1745604967252,0.28875834,603.92,601.97,0.30479456]
[1745604967847,0.28875834,603.92,601.98,0.30479456]
[1745604968151,0.28875834,603.92,601.94,1.04405207]
[1745604968351,0.28875834,603.92,601.95,0.30477527]
[1745604969051,1.25737978,603.95,601.95,0.30477527]
[1745604969856,1.25737978,603.95,601.86,1.436]
[1745604969857,1.25737978,603.79,601.96,0.30477601]
[1745604970152,1.25737978,603.79,601.97,0.30477601]
[1745604970350,0.28877511,603.78,601.91,0.28877511]
[1745604970549,0.28877511,603.78,601.92,0.30477601]
[1745604972055,1.25737978,603.79,601.92,0.30477601]
[1745604972250,1.25737978,603.79,601.86,1.436]
[1745604972251,1.25737978,603.77,601.87,0.30477601]
[1745604972457,1.25737978,603.77,601.88,0.30477601]
[1745604972755,1.25737978,603.77,601.89,0.30477601]
[1745604972952,1.25737978,603.77,601.87,0.30477601]
[1745604973150,1.25737978,603.77,601.88,0.30477601]
[1745604973354,0.28875834,603.76,601.9,0.28875834]
[1745604973557,0.28875834,603.76,601.91,0.30477601]
[1745604974156,0.28875834,603.76,601.9,0.28875834]
[1745604974353,0.28875834,603.76,601.92,0.30472863]
[1745604974549,0.28875834,603.76,601.93,0.30472863]
[1745604974752,0.28875834,603.76,601.94,0.30472863]
[1745604974955,0.28875834,603.76,601.95,0.30472863]
[1745604975156,0.28875834,603.76,601.91,0.30472863]
[1745604975457,0.28875834,603.76,601.92,0.30472863]
[1745604975653,0.28875834,603.76,601.93,0.30472863]
[1745604975856,0.28875834,603.76,601.94,0.30472863]
[1745604976057,0.28875834,603.76,601.9,0.28875834]
[1745604976258,0.28875834,603.76,601.91,0.30472129]
[1745604977860,0.28875834,603.76,601.92,0.30472129]
[1745604978059,1.25737978,604.12,601.93,0.30472129]
[1745604978255,2.12377208,604.5,601.89,1.266]
[1745604978256,1.25737978,604.18,602.05,1.04405207]
[1745604978454,1.25737978,604.18,602.06,0.30472129]
[1745604979161,1.25737978,604.18,602.05,1.04405207]
[1745604979362,0.28866133,604.17,602.06,0.3046978]
[1745604980762,1.25737978,604.04,602.2,1.04405207]
[1745604980962,1.25737978,604.04,602.21,0.3046978]
[1745604982261,1.25737978,604.04,602.2,1.04405207]
[1745604982458,1.25737978,604.04,602.21,0.3047122]
[1745604983063,2.12377208,604.15,601.89,1.266]
[1745604983064,1.25737978,604.01,602.15,1.04405207]
[1745604983260,1.25737978,604.01,602.22,0.925]
[1745604983460,1.25737978,604.01,602.23,0.30470913]
[1745604984058,1.25737978,604.01,602.22,0.925]
[1745604984259,1.25737978,604.01,602.23,0.304704]
[1745604986466,1.25737978,603.99,602.23,0.304704]
[1745604987160,0.28865295,603.98,602.23,0.304704]
[1745604987465,0.28865295,603.98,602.24,0.901]
[1745604987659,0.28865295,603.98,602.25,0.304704]
[1745604988765,0.28865295,603.98,602.24,0.901]
[1745604988965,0.28865295,603.98,602.25,0.30466264]
[1745604989960,0.28865295,603.98,602.26,0.30466609]
[1745604990166,1.25737978,603.99,602.27,0.30466609]
[1745604990367,1.25737978,603.99,602.25,0.30466609]
[1745604990561,1.25737978,603.99,602.24,0.901]
[1745604990865,1.25737978,603.99,602.25,0.30466271]
[1745604991366,0.28863859,603.98,602.25,0.30466271]
[1745604993066,1.25737978,603.99,602.25,0.30466271]
[1745604993366,0.28863859,603.97,602.25,0.30466271]
[1745604993767,0.28863859,603.97,602.26,0.957]
[1745604993963,0.28863859,603.97,602.27,0.30466271]
[1745604995963,1.25737978,604.06,602.27,0.30466271]
[1745604996369,0.28862782,604.05,602.27,0.30466271]
[1745604996763,0.28862782,604.05,602.26,0.957]
[1745604996968,0.28862782,604.05,602.27,0.3046586]
[1745604998569,0.28862782,604.05,602.28,0.30465649]
[1745604998871,0.28862782,604.05,602.29,0.30465649]
[1745604999270,0.28862782,604.05,602.27,0.30465649]
[1745604999569,0.28862782,604.05,602.28,0.30465649]
[1745604999770,0.28862782,604.05,602.27,0.30465649]
[1745604999967,0.28862782,604.05,602.26,0.957]
[1745605000266,0.28862782,604.05,602.27,0.30460429]
[1745605001973,1.25737978,604.34,602.27,0.30460429]
[1745605002373,0.28854405,604.1,602.27,0.30460429]
[1745605002672,1.25737978,604.34,602.27,0.30460429]
[1745605003373,0.28854166,604.33,602.27,0.30460429]
[1745605004872,0.28854166,604.33,602.26,0.957]
[1745605005074,0.28854166,604.33,602.27,0.30454602]
[1745605005274,0.28854166,604.33,602.28,0.30454602]
[1745605005576,0.28854166,604.33,602.29,0.30454602]
[1745605005773,0.28854166,604.33,602.27,0.30454602]
[1745605006076,0.28854166,604.33,602.27,1.47754602]
[1745605006273,0.28854166,604.33,602.28,0.30454602]
[1745605007276,0.28854166,604.33,602.33,1.04405207]
[1745605007571,0.28854166,604.33,602.34,0.30454602]
[1745605008078,1.25737978,604.6,602.33,1.04405207]
[1745605008278,1.25737978,604.6,602.34,0.30454893]
[1745605009377,0.2885309,604.59,602.34,0.30454893]
[1745605010681,0.2885309,604.59,602.29,0.30454893]
[1745605011081,1.25737978,604.72,602.29,0.30454893]
[1745605011280,1.25737978,604.72,602.28,0.30454893]
[1745605011880,1.25737978,604.72,602.28,1.20454893]